[Event "Schack-SM 2022: Mastarklassen"]
[Site "Fyrishov, Idrottsgatan 2, Uppsala, Sweden"]
[Date "2022.07.03"]
[Round "2.3"]
[White "Carlstrom, Niklas"]
[Black "Hammarstrom, Ulf"]
[Result "1/2-1/2"]
[TimeControl "90 minutes for 40 moves + 30 minutes for the rest of the game + 30 seconds per move from move one."]
[WhiteFideId "1704648"]
[BlackFideId "1710214"]
[WhiteElo "2125"]
[BlackElo "2233"]

1. Nc3 {[%clk 01:30:47]} {[%emt 00:00:12]} d5 {[%clk 01:30:28]} {[%emt
00:00:33]} 2. d4 {[%clk 01:30:46]} {[%emt 00:00:30]} Nf6 {[%clk 01:30:48]}
{[%emt 00:00:08]} 3. Bf4 {[%clk 01:31:04]} {[%emt 00:00:13]} e6 {[%clk
01:31:07]} {[%emt 00:00:13]} 4. e3 {[%clk 01:30:22]} {[%emt 00:01:12]} Bb4
{[%clk 01:31:08]} {[%emt 00:00:30]} 5. Bd3 {[%clk 01:29:43]} {[%emt 00:01:08]}
c5 {[%clk 01:30:30]} {[%emt 00:01:09]} 6. dxc5 {[%clk 01:29:06]} {[%emt
00:01:05]} Nbd7 {[%clk 01:30:00]} {[%emt 00:01:01]} 7. a3 {[%clk 01:24:51]}
{[%emt 00:04:46]} Bxc3+ {[%clk 01:27:26]} {[%emt 00:03:05]} 8. bxc3 {[%clk
01:25:14]} {[%emt 00:00:07]} Nxc5 {[%clk 01:26:59]} {[%emt 00:00:56]} 9. Ne2
{[%clk 01:18:19]} {[%emt 00:07:25]} O-O {[%clk 01:23:19]} {[%emt 00:04:09]} 10.
O-O {[%clk 01:12:51]} {[%emt 00:05:58]} Qe7 {[%clk 01:19:16]} {[%emt 00:04:34]}
11. Ng3 {[%clk 01:10:02]} {[%emt 00:03:18]} e5 {[%clk 01:08:33]} {[%emt
00:11:15]} 12. Bg5 {[%clk 01:10:18]} {[%emt 00:00:14]} h6 {[%clk 01:07:28]}
{[%emt 00:01:35]} 13. Bxf6 {[%clk 01:10:09]} {[%emt 00:00:39]} Qxf6 {[%clk
01:07:40]} {[%emt 00:00:18]} 14. e4 {[%clk 01:07:40]} {[%emt 00:02:58]} dxe4
{[%clk 00:59:44]} {[%emt 00:08:28]} 15. Nxe4 {[%clk 01:07:20]} {[%emt
00:00:49]} Qc6 {[%clk 00:57:06]} {[%emt 00:03:08]} 16. Nxc5 {[%clk 00:53:52]}
{[%emt 00:13:57]} Qxc5 {[%clk 00:57:20]} {[%emt 00:00:16]} 17. Re1 {[%clk
00:54:01]} {[%emt 00:00:20]} Qxc3 {[%clk 00:43:46]} {[%emt 00:14:05]} 18. Qe2
{[%clk 00:52:40]} {[%emt 00:01:50]} Re8 {[%clk 00:36:28]} {[%emt 00:07:49]} 19.
Qf3 {[%clk 00:46:56]} {[%emt 00:06:14]} Qc7 {[%clk 00:31:38]} {[%emt 00:05:19]}
20. Rab1 {[%clk 00:42:28]} {[%emt 00:04:58]} Rb8 {[%clk 00:29:30]} {[%emt
00:02:40]} 21. h4 {[%clk 00:32:45]} {[%emt 00:10:12]} Bd7 {[%clk 00:23:26]}
{[%emt 00:06:34]} 22. h5 {[%clk 00:29:08]} {[%emt 00:04:07]} b6 {[%clk
00:16:05]} {[%emt 00:07:52]} 23. Rbd1 {[%clk 00:25:21]} {[%emt 00:04:15]} Bc6
{[%clk 00:10:02]} {[%emt 00:06:35]} 24. Qf5 {[%clk 00:24:20]} {[%emt 00:01:30]}
e4 {[%clk 00:10:12]} {[%emt 00:00:21]} 25. Bxe4 {[%clk 00:24:24]} {[%emt
00:00:24]} Bxe4 {[%clk 00:10:18]} {[%emt 00:00:25]} 26. Rxe4 {[%clk 00:24:45]}
{[%emt 00:00:09]} Rxe4 {[%clk 00:10:27]} {[%emt 00:00:22]} 27. Qxe4 {[%clk
00:25:07]} {[%emt 00:00:08]} 1/2-1/2

[Event "Schack-SM 2022: Mastarklassen"]
[Site "Fyrishov, Idrottsgatan 2, Uppsala, Sweden"]
[Date "2022.07.03"]
[Round "2.4"]
[White "Malmstig, Erik"]
[Black "Bjorkman, Filip"]
[Result "1-0"]
[TimeControl "90 minutes for 40 moves + 30 minutes for the rest of the game + 30 seconds per move from move one."]
[WhiteTitle "FM"]
[WhiteFideId "1702866"]
[BlackFideId "1734970"]
[WhiteElo "2204"]
[BlackElo "2066"]

1. d4 {[%clk 01:30:52]} {[%emt 00:00:06]} Nf6 {[%clk 01:30:54]} {[%emt
00:00:07]} 2. c4 {[%clk 01:30:24]} {[%emt 00:00:59]} g6 {[%clk 01:31:17]}
{[%emt 00:00:07]} 3. Nf3 {[%clk 01:29:05]} {[%emt 00:01:49]} Bg7 {[%clk
01:31:40]} {[%emt 00:00:07]} 4. g3 {[%clk 01:29:12]} {[%emt 00:00:22]} c6
{[%clk 01:31:47]} {[%emt 00:00:25]} 5. Bg2 {[%clk 01:28:32]} {[%emt 00:01:09]}
d5 {[%clk 01:32:09]} {[%emt 00:00:08]} 6. cxd5 {[%clk 01:24:56]} {[%emt
00:04:07]} cxd5 {[%clk 01:32:36]} {[%emt 00:00:03]} 7. O-O {[%clk 01:24:56]}
{[%emt 00:00:29]} O-O {[%clk 01:32:51]} {[%emt 00:00:15]} 8. Nc3 {[%clk
01:24:47]} {[%emt 00:00:39]} Ne4 {[%clk 01:32:32]} {[%emt 00:00:49]} 9. Bf4
{[%clk 01:23:56]} {[%emt 00:01:20]} Bf5 {[%clk 01:28:00]} {[%emt 00:05:03]} 10.
Qb3 {[%clk 01:17:57]} {[%emt 00:06:29]} Nc6 {[%clk 01:28:22]} {[%emt 00:00:08]}
11. Rfd1 {[%clk 00:53:55]} {[%emt 00:24:32]} Na5 {[%clk 00:52:04]} {[%emt
00:36:49]} 12. Qb4 {[%clk 00:50:54]} {[%emt 00:03:30]} Nxc3 {[%clk 00:52:19]}
{[%emt 00:00:16]} 13. bxc3 {[%clk 00:41:00]} {[%emt 00:10:24]} Be4 {[%clk
00:48:44]} {[%emt 00:04:05]} 14. Bg5 {[%clk 00:38:01]} {[%emt 00:03:29]} Re8
{[%clk 00:48:30]} {[%emt 00:00:44]} 15. Bh3 {[%clk 00:36:35]} {[%emt 00:01:55]}
h6 {[%clk 00:44:11]} {[%emt 00:04:50]} 16. Bf4 {[%clk 00:31:16]} {[%emt
00:05:49]} Bxf3 {[%clk 00:40:48]} {[%emt 00:03:53]} 17. exf3 {[%clk 00:31:26]}
{[%emt 00:00:19]} e6 {[%clk 00:41:14]} {[%emt 00:00:05]} 18. Bf1 {[%clk
00:29:22]} {[%emt 00:02:33]} a6 {[%clk 00:41:14]} {[%emt 00:00:32]} 19. a4
{[%clk 00:26:37]} {[%emt 00:03:15]} Bf8 {[%clk 00:36:50]} {[%emt 00:04:54]} 20.
Qb2 {[%clk 00:23:13]} {[%emt 00:03:54]} Rc8 {[%clk 00:37:12]} {[%emt 00:00:09]}
21. Rdb1 {[%clk 00:19:23]} {[%emt 00:04:19]} Rc6 {[%clk 00:37:05]} {[%emt
00:00:37]} 22. Qd2 {[%clk 00:15:17]} {[%emt 00:04:36]} Kh7 {[%clk 00:32:21]}
{[%emt 00:05:13]} 23. h4 {[%clk 00:14:05]} {[%emt 00:01:43]} h5 {[%clk
00:31:54]} {[%emt 00:00:57]} 24. Kg2 {[%clk 00:12:40]} {[%emt 00:01:55]} Qc8
{[%clk 00:29:16]} {[%emt 00:03:08]} 25. g4 {[%clk 00:10:00]} {[%emt 00:03:09]}
hxg4 {[%clk 00:23:47]} {[%emt 00:06:00]} 26. fxg4 {[%clk 00:06:08]} {[%emt
00:04:21]} Rxc3 {[%clk 00:24:07]} {[%emt 00:00:10]} 27. Be5 {[%clk 00:05:01]}
{[%emt 00:01:37]} Bh6 {[%clk 00:15:52]} {[%emt 00:08:45]} 28. g5 {[%clk
00:04:59]} {[%emt 00:00:32]} Bg7 {[%clk 00:15:06]} {[%emt 00:01:16]} 29. Rc1
{[%clk 00:04:01]} {[%emt 00:01:28]} Rxc1 {[%clk 00:14:20]} {[%emt 00:01:17]} 30.
Rxc1 {[%clk 00:04:05]} {[%emt 00:00:26]} Nc6 {[%clk 00:14:23]} {[%emt
00:00:27]} 31. Qf4 {[%clk 00:03:26]} {[%emt 00:01:09]} Qd7 {[%clk 00:10:53]}
{[%emt 00:04:01]} 32. Bxg7 {[%clk 00:01:24]} {[%emt 00:02:32]} Kxg7 {[%clk
00:11:15]} {[%emt 00:00:08]} 33. h5 {[%clk 00:01:26]} {[%emt 00:00:29]} gxh5
{[%clk 00:05:32]} {[%emt 00:06:13]} 34. Qf6+ {[%clk 00:01:40]} {[%emt
00:00:15]} Kg8 {[%clk 00:05:46]} {[%emt 00:00:16]} 35. Bd3 {[%clk 00:01:36]}
{[%emt 00:00:34]} Nxd4 {[%clk 00:00:44]} {[%emt 00:05:33]} 36. Qxd4 {[%clk
00:01:35]} {[%emt 00:00:31]} e5 {[%clk 00:01:07]} {[%emt 00:00:07]} 37. Qh4
{[%clk 00:01:36]} {[%emt 00:00:28]} e4 {[%clk 00:01:14]} {[%emt 00:00:24]} 38.
Be2 {[%clk 00:01:30]} {[%emt 00:00:36]} Kg7 {[%clk 00:01:23]} {[%emt 00:00:21]}
39. Qf4 {[%clk 00:01:23]} {[%emt 00:00:37]} Qe6 {[%clk 00:00:59]} {[%emt
00:00:55]} 40. Bxh5 {[%clk 00:00:43]} {[%emt 00:01:09]} Re7 {[%clk 00:01:12]}
{[%emt 00:00:17]} 41. Qh4 {[%clk 00:21:03]} {[%emt 00:10:09]} Qf5 {[%clk
00:28:18]} {[%emt 00:03:25]} 42. Bg4 {[%clk 00:11:54]} {[%emt 00:09:40]} Qh7
{[%clk 00:27:40]} {[%emt 00:01:08]} 43. Qg3 {[%clk 00:11:28]} {[%emt 00:00:55]}
Qg6 {[%clk 00:26:47]} {[%emt 00:01:23]} 44. Qf4 {[%clk 00:09:24]} {[%emt
00:02:34]} f6 {[%clk 00:25:45]} {[%emt 00:01:32]} 45. Rc7 {[%clk 00:06:47]}
{[%emt 00:03:06]} Rxc7 {[%clk 00:24:20]} {[%emt 00:01:56]} 46. Qxc7+ {[%clk
00:07:08]} {[%emt 00:00:09]} Qf7 {[%clk 00:24:46]} {[%emt 00:00:04]} 47. gxf6+
{[%clk 00:06:38]} {[%emt 00:01:00]} Kxf6 {[%clk 00:25:12]} {[%emt 00:00:04]} 48.
Qf4+ {[%clk 00:06:23]} {[%emt 00:00:45]} Kg6 {[%clk 00:23:25]} {[%emt
00:02:16]} 49. Bh5+ {[%emt 00:00:09]} 1-0

[ePGN "0.1;DGT LiveChess/2.2.5"]

[Event "Schack-SM 2022: Mastarklassen"]
[Site "Fyrishov, Idrottsgatan 2, Uppsala, Sweden"]
[Date "2022.07.02"]
[Round "1.1"]
[White "Crevatin, Leo"]
[Black "Sundin, Emanuel"]
[Result "1-0"]
[TimeControl "90 minutes for 40 moves + 30 minutes for the rest of the game + 30 seconds per move from move one."]
[WhiteTitle "CM"]
[WhiteFideId "1726307"]
[BlackFideId "1719173"]
[WhiteElo "2259"]
[BlackElo "2160"]

1. d4 {[%clk 01:30:58]} {[%emt 00:00:02]} d5 {[%clk 01:30:29]} {[%emt
00:00:31]} 2. Nf3 {[%clk 01:31:21]} {[%emt 00:00:06]} e6 {[%clk 01:30:29]}
{[%emt 00:00:30]} 3. c4 {[%clk 01:31:45]} {[%emt 00:00:06]} c6 {[%clk
01:30:06]} {[%emt 00:00:53]} 4. Qc2 {[%clk 01:31:05]} {[%emt 00:01:10]} dxc4
{[%clk 01:25:46]} {[%emt 00:04:50]} 5. Qxc4 {[%clk 01:31:33]} {[%emt 00:00:02]}
Nf6 {[%clk 01:26:07]} {[%emt 00:00:08]} 6. Bg5 {[%clk 01:31:40]} {[%emt
00:00:24]} b5 {[%clk 01:22:09]} {[%emt 00:04:29]} 7. Qc2 {[%clk 01:31:02]}
{[%emt 00:01:07]} Bb7 {[%clk 01:21:51]} {[%emt 00:00:48]} 8. e4 {[%clk
01:28:57]} {[%emt 00:02:34]} Nbd7 {[%clk 01:17:02]} {[%emt 00:05:20]} 9. Bd3
{[%clk 01:25:55]} {[%emt 00:03:31]} h6 {[%clk 01:15:52]} {[%emt 00:01:40]} 10.
Bxf6 {[%clk 01:22:01]} {[%emt 00:04:24]} Qxf6 {[%clk 01:05:40]} {[%emt
00:10:42]} 11. O-O {[%clk 01:19:40]} {[%emt 00:02:50]} a6 {[%clk 01:03:32]}
{[%emt 00:02:40]} 12. a4 {[%clk 01:15:19]} {[%emt 00:04:51]} Rc8 {[%clk
00:58:53]} {[%emt 00:05:09]} 13. Nbd2 {[%clk 01:09:07]} {[%emt 00:06:42]} Nb6
{[%clk 00:48:53]} {[%emt 00:10:31]} 14. Qb3 {[%clk 00:58:31]} {[%emt 00:11:06]}
b4 {[%clk 00:44:17]} {[%emt 00:05:06]} 15. a5 {[%clk 00:54:19]} {[%emt
00:04:42]} Nd7 {[%clk 00:42:16]} {[%emt 00:02:31]} 16. Rfe1 {[%clk 00:49:05]}
{[%emt 00:05:44]} Be7 {[%clk 00:29:55]} {[%emt 00:12:52]} 17. e5 {[%clk
00:47:13]} {[%emt 00:02:23]} Qf4 {[%clk 00:27:43]} {[%emt 00:02:41]} 18. Re4
{[%clk 00:47:27]} {[%emt 00:00:17]} Qf5 {[%clk 00:27:48]} {[%emt 00:00:25]} 19.
Rh4 {[%clk 00:47:40]} {[%emt 00:00:16]} 1-0

[Event "Schack-SM 2022: Mastarklassen"]
[Site "Fyrishov, Idrottsgatan 2, Uppsala, Sweden"]
[Date "2022.07.02"]
[Round "1.2"]
[White "Olsson, Svante"]
[Black "Eriksson, Dan"]
[Result "0-1"]
[TimeControl "90 minutes for 40 moves + 30 minutes for the rest of the game + 30 seconds per move from move one."]
[WhiteFideId "1707353"]
[BlackFideId "1710095"]
[WhiteElo "2156"]
[BlackElo "2246"]

1. c4 {[%clk 01:30:56]} {[%emt 00:00:03]} e5 {[%clk 01:30:41]} {[%emt
00:00:20]} 2. Nc3 {[%clk 01:31:14]} {[%emt 00:00:12]} Nf6 {[%clk 01:30:49]}
{[%emt 00:00:22]} 3. g3 {[%clk 01:31:26]} {[%emt 00:00:17]} d5 {[%clk
01:31:12]} {[%emt 00:00:07]} 4. cxd5 {[%clk 01:31:48]} {[%emt 00:00:09]} Nxd5
{[%clk 01:31:36]} {[%emt 00:00:06]} 5. Bg2 {[%clk 01:32:11]} {[%emt 00:00:06]}
Nb6 {[%clk 01:31:58]} {[%emt 00:00:09]} 6. Nf3 {[%clk 01:32:09]} {[%emt
00:00:33]} Nc6 {[%clk 01:32:11]} {[%emt 00:00:17]} 7. O-O {[%clk 01:31:56]}
{[%emt 00:00:43]} Be7 {[%clk 01:32:31]} {[%emt 00:00:10]} 8. b3 {[%clk
01:31:33]} {[%emt 00:00:52]} O-O {[%clk 01:30:54]} {[%emt 00:02:07]} 9. Bb2
{[%clk 01:31:45]} {[%emt 00:00:18]} Bf5 {[%clk 01:25:39]} {[%emt 00:05:45]} 10.
d3 {[%clk 01:30:38]} {[%emt 00:01:37]} Qc8 {[%clk 01:17:57]} {[%emt 00:08:12]}
11. Re1 {[%clk 01:24:08]} {[%emt 00:06:59]} a5 {[%clk 01:11:30]} {[%emt
00:06:57]} 12. Nb5 {[%clk 01:22:18]} {[%emt 00:02:20]} a4 {[%clk 01:05:32]}
{[%emt 00:06:28]} 13. Nxe5 {[%clk 01:20:31]} {[%emt 00:02:17]} Nxe5 {[%clk
01:05:36]} {[%emt 00:00:27]} 14. Bxe5 {[%clk 01:20:39]} {[%emt 00:00:21]} Ra5
{[%clk 01:02:32]} {[%emt 00:03:35]} 15. bxa4 {[%clk 01:16:56]} {[%emt
00:04:14]} c6 {[%clk 01:02:15]} {[%emt 00:00:46]} 16. Nd6 {[%clk 01:11:13]}
{[%emt 00:06:13]} Bxd6 {[%clk 01:02:28]} {[%emt 00:00:17]} 17. Bxd6 {[%clk
01:11:31]} {[%emt 00:00:12]} Rd8 {[%clk 01:02:45]} {[%emt 00:00:13]} 18. Bb4
{[%clk 01:10:08]} {[%emt 00:01:53]} Rxa4 {[%clk 01:01:30]} {[%emt 00:01:46]} 19.
Rb1 {[%clk 01:08:47]} {[%emt 00:01:50]} Rxa2 {[%clk 00:53:11]} {[%emt
00:08:49]} 20. e4 {[%clk 01:07:38]} {[%emt 00:01:39]} Bg4 {[%clk 00:49:42]}
{[%emt 00:03:58]} 21. f3 {[%clk 01:05:07]} {[%emt 00:03:01]} Be6 {[%clk
00:45:29]} {[%emt 00:04:43]} 22. Re2 {[%clk 01:04:46]} {[%emt 00:00:51]} Qa8
{[%clk 00:38:39]} {[%emt 00:07:20]} 23. Bf1 {[%clk 01:01:20]} {[%emt 00:03:56]}
Nc4 {[%clk 00:34:54]} {[%emt 00:04:15]} 24. d4 {[%clk 01:00:04]} {[%emt
00:01:45]} Ra4 {[%clk 00:29:50]} {[%emt 00:05:35]} 25. Be1 {[%clk 00:52:13]}
{[%emt 00:08:21]} Ne5 {[%clk 00:28:31]} {[%emt 00:01:49]} 26. Rd2 {[%clk
00:51:38]} {[%emt 00:01:05]} Raxd4 {[%clk 00:28:39]} {[%emt 00:00:23]} 27. Kg2
{[%clk 00:48:33]} {[%emt 00:03:35]} Rxd2+ {[%clk 00:28:12]} {[%emt 00:00:56]}
28. Bxd2 {[%clk 00:49:01]} {[%emt 00:00:02]} Qa2 {[%emt 00:00:44]} 0-1

[Event "Schack-SM 2022: Mastarklassen"]
[Site "Fyrishov, Idrottsgatan 2, Uppsala, Sweden"]
[Date "2022.07.02"]
[Round "1.3"]
[White "Tiger-Norqvist, Axel"]
[Black "Carlstrom, Niklas"]
[Result "0-1"]
[TimeControl "90 minutes for 40 moves + 30 minutes for the rest of the game + 30 seconds per move from move one."]
[WhiteFideId "1716816"]
[BlackFideId "1704648"]
[WhiteElo "2239"]
[BlackElo "2125"]

1. e4 {[%clk 01:30:57]} {[%emt 00:00:02]} e5 {[%clk 01:30:37]} {[%emt
00:00:23]} 2. Nf3 {[%clk 01:31:17]} {[%emt 00:00:10]} Nc6 {[%clk 01:30:59]}
{[%emt 00:00:08]} 3. Bb5 {[%clk 01:31:28]} {[%emt 00:00:20]} f5 {[%clk
01:31:05]} {[%emt 00:00:23]} 4. exf5 {[%clk 01:28:26]} {[%emt 00:03:32]} e4
{[%clk 01:31:11]} {[%emt 00:00:24]} 5. Ng1 {[%clk 01:26:40]} {[%emt 00:02:17]}
Nf6 {[%clk 01:29:26]} {[%emt 00:02:14]} 6. d4 {[%clk 01:22:31]} {[%emt
00:04:40]} d5 {[%clk 01:16:24]} {[%emt 00:13:31]} 7. Ne2 {[%clk 01:05:46]}
{[%emt 00:17:17]} Bxf5 {[%clk 01:13:50]} {[%emt 00:03:03]} 8. c4 {[%clk
01:05:33]} {[%emt 00:00:43]} a6 {[%clk 01:05:38]} {[%emt 00:08:42]} 9. Ba4
{[%clk 01:00:25]} {[%emt 00:05:39]} dxc4 {[%clk 00:58:33]} {[%emt 00:07:34]} 10.
Bxc6+ {[%clk 01:00:01]} {[%emt 00:00:54]} bxc6 {[%clk 00:58:56]} {[%emt
00:00:07]} 11. Qa4 {[%clk 01:00:24]} {[%emt 00:00:07]} Qd7 {[%clk 00:56:56]}
{[%emt 00:02:29]} 12. Qxc4 {[%clk 00:59:39]} {[%emt 00:01:16]} Bd6 {[%clk
00:55:04]} {[%emt 00:02:20]} 13. Nbc3 {[%clk 00:51:52]} {[%emt 00:08:19]} Nd5
{[%clk 00:41:33]} {[%emt 00:14:00]} 14. Nxd5 {[%clk 00:48:37]} {[%emt
00:03:45]} cxd5 {[%clk 00:41:55]} {[%emt 00:00:07]} 15. Qc3 {[%clk 00:49:01]}
{[%emt 00:00:06]} Qb5 {[%clk 00:37:00]} {[%emt 00:05:24]} 16. Qc2 {[%clk
00:45:35]} {[%emt 00:03:57]} Bb4+ {[%clk 00:29:20]} {[%emt 00:08:09]} 17. Nc3
{[%clk 00:44:58]} {[%emt 00:01:08]} Bg4 {[%clk 00:27:37]} {[%emt 00:02:12]} 18.
h3 {[%clk 00:40:23]} {[%emt 00:05:05]} Bh5 {[%clk 00:27:21]} {[%emt 00:00:45]}
19. g4 {[%clk 00:40:13]} {[%emt 00:00:41]} Bg6 {[%clk 00:27:17]} {[%emt
00:00:33]} 20. Be3 {[%clk 00:40:32]} {[%emt 00:00:13]} O-O {[%clk 00:25:51]}
{[%emt 00:01:55]} 21. a3 {[%clk 00:39:39]} {[%emt 00:01:25]} Bxc3+ {[%clk
00:21:59]} {[%emt 00:04:21]} 22. Qxc3 {[%clk 00:38:55]} {[%emt 00:01:14]} Rab8
{[%clk 00:21:44]} {[%emt 00:00:44]} 23. b4 {[%clk 00:31:31]} {[%emt 00:07:55]}
Rb6 {[%clk 00:16:29]} {[%emt 00:05:45]} 24. Rc1 {[%clk 00:24:12]} {[%emt
00:07:49]} Be8 {[%clk 00:11:04]} {[%emt 00:05:54]} 25. Qb3 {[%clk 00:21:50]}
{[%emt 00:02:53]} Rc6 {[%clk 00:10:46]} {[%emt 00:00:47]} 26. Kd2 {[%clk
00:12:35]} {[%emt 00:09:45]} Rc4 {[%clk 00:09:36]} {[%emt 00:01:39]} 27. Qb1
{[%clk 00:10:31]} {[%emt 00:02:35]} Bg6 {[%clk 00:07:08]} {[%emt 00:02:58]} 28.
h4 {[%clk 00:10:00]} {[%emt 00:01:02]} Rxf2+ {[%clk 00:06:16]} {[%emt
00:01:21]} 29. Bxf2 {[%clk 00:08:42]} {[%emt 00:01:47]} e3+ {[%clk 00:06:37]}
{[%emt 00:00:09]} 30. Bxe3 {[%clk 00:09:10]} {[%emt 00:00:03]} Bxb1 {[%clk
00:06:59]} {[%emt 00:00:08]} 31. Rxb1 {[%clk 00:09:38]} {[%emt 00:00:03]} Qa4
{[%clk 00:06:17]} {[%emt 00:01:11]} 32. Rhc1 {[%clk 00:09:23]} {[%emt
00:00:46]} Qxa3 {[%clk 00:06:19]} {[%emt 00:00:27]} 33. Ke2 {[%clk 00:09:50]}
{[%emt 00:00:04]} Rc3 {[%clk 00:04:24]} {[%emt 00:02:23]} 34. Rxc3 {[%clk
00:09:38]} {[%emt 00:00:43]} Qxc3 {[%clk 00:04:47]} {[%emt 00:00:06]} 35. Rc1
{[%clk 00:09:20]} {[%emt 00:00:48]} Qxb4 {[%clk 00:04:39]} {[%emt 00:00:37]} 36.
Rxc7 {[%clk 00:09:44]} {[%emt 00:00:07]} Qb5+ {[%clk 00:04:47]} {[%emt
00:00:20]} 37. Kf2 {[%clk 00:09:17]} {[%emt 00:00:58]} Qb6 {[%clk 00:02:21]}
{[%emt 00:02:56]} 38. Rc5 {[%clk 00:07:21]} {[%emt 00:02:26]} Qd8 {[%clk
00:02:01]} {[%emt 00:00:49]} 39. g5 {[%clk 00:07:31]} {[%emt 00:00:21]} a5
{[%clk 00:01:50]} {[%emt 00:00:41]} 40. Bd2 {[%clk 00:03:54]} {[%emt 00:04:07]}
a4 {[%clk 00:02:07]} {[%emt 00:00:13]} 41. Bc1 {[%clk 00:29:06]} {[%emt
00:05:19]} Qd7 {[%clk 00:31:22]} {[%emt 00:01:14]} 42. h5 {[%clk 00:26:40]}
{[%emt 00:02:57]} Qf5+ {[%clk 00:31:17]} {[%emt 00:00:34]} 43. Ke2 {[%clk
00:26:52]} {[%emt 00:00:19]} Qe4+ {[%clk 00:31:15]} {[%emt 00:00:31]} 44. Be3
{[%clk 00:27:17]} {[%emt 00:00:06]} a3 {[%clk 00:31:05]} {[%emt 00:00:40]} 45.
Ra5 {[%clk 00:26:32]} {[%emt 00:01:15]} Qc2+ {[%clk 00:28:55]} {[%emt
00:02:39]} 46. Bd2 {[%clk 00:24:56]} {[%emt 00:02:07]} a2 {[%clk 00:28:46]}
{[%emt 00:00:39]} 47. g6 {[%clk 00:22:58]} {[%emt 00:02:29]} hxg6 {[%clk
00:29:08]} {[%emt 00:00:07]} 48. hxg6 {[%clk 00:23:21]} {[%emt 00:00:07]} Kf8
{[%clk 00:29:21]} {[%emt 00:00:16]} 0-1

[Event "Schack-SM 2022: Mastarklassen"]
[Site "Fyrishov, Idrottsgatan 2, Uppsala, Sweden"]
[Date "2022.07.02"]
[Round "1.5"]
[White "Johansson, Thomas"]
[Black "Strom-Engdahl, Alexander"]
[Result "0-1"]
[TimeControl "90 minutes for 40 moves + 30 minutes for the rest of the game + 30 seconds per move from move one."]
[WhiteFideId "1708244"]
[BlackFideId "1741586"]
[WhiteElo "2231"]
[BlackElo "2077"]

1. Nf3 {[%clk 01:30:51]} {[%emt 00:00:08]} Nf6 {[%clk 01:29:52]} {[%emt
00:01:07]} 2. c4 {[%clk 01:31:14]} {[%emt 00:00:07]} e6 {[%clk 01:30:01]}
{[%emt 00:00:22]} 3. d4 {[%clk 01:30:51]} {[%emt 00:00:54]} Bb4+ {[%clk
01:30:10]} {[%emt 00:00:21]} 4. Bd2 {[%clk 01:30:34]} {[%emt 00:00:47]} Bxd2+
{[%clk 01:30:03]} {[%emt 00:00:38]} 5. Qxd2 {[%clk 01:30:50]} {[%emt 00:00:14]}
b6 {[%clk 01:29:06]} {[%emt 00:01:27]} 6. g3 {[%clk 01:30:06]} {[%emt
00:01:13]} Bb7 {[%clk 01:29:29]} {[%emt 00:00:07]} 7. Bg2 {[%clk 01:30:31]}
{[%emt 00:00:04]} O-O {[%clk 01:29:42]} {[%emt 00:00:18]} 8. O-O {[%clk
01:30:53]} {[%emt 00:00:08]} d6 {[%clk 01:25:10]} {[%emt 00:05:02]} 9. Nc3
{[%clk 01:31:13]} {[%emt 00:00:10]} Qe7 {[%clk 01:23:50]} {[%emt 00:01:51]} 10.
Qc2 {[%clk 01:23:26]} {[%emt 00:08:17]} c5 {[%clk 01:20:03]} {[%emt 00:04:17]}
11. Rad1 {[%clk 00:58:27]} {[%emt 00:25:29]} Nc6 {[%clk 01:09:25]} {[%emt
00:11:08]} 12. d5 {[%clk 00:45:58]} {[%emt 00:12:59]} Nb4 {[%clk 00:58:07]}
{[%emt 00:11:48]} 13. Qc1 {[%clk 00:23:35]} {[%emt 00:22:53]} exd5 {[%clk
00:52:44]} {[%emt 00:05:54]} 14. a3 {[%clk 00:24:00]} {[%emt 00:00:06]} Na6
{[%clk 00:53:04]} {[%emt 00:00:09]} 15. cxd5 {[%clk 00:24:14]} {[%emt
00:00:15]} Nc7 {[%clk 00:44:35]} {[%emt 00:08:59]} 16. Nh4 {[%clk 00:24:03]}
{[%emt 00:00:41]} Bc8 {[%clk 00:34:08]} {[%emt 00:10:57]} 17. e4 {[%clk
00:19:43]} {[%emt 00:04:50]} b5 {[%clk 00:29:25]} {[%emt 00:05:13]} 18. b4
{[%clk 00:19:35]} {[%emt 00:00:38]} cxb4 {[%clk 00:27:30]} {[%emt 00:02:25]} 19.
axb4 {[%clk 00:19:58]} {[%emt 00:00:07]} a5 {[%clk 00:27:43]} {[%emt 00:00:17]}
20. bxa5 {[%clk 00:15:34]} {[%emt 00:04:54]} Rxa5 {[%clk 00:26:03]} {[%emt
00:02:10]} 21. Qb2 {[%clk 00:14:41]} {[%emt 00:01:24]} Bd7 {[%clk 00:24:05]}
{[%emt 00:02:27]} 22. Rfe1 {[%clk 00:15:01]} {[%emt 00:00:10]} Ng4 {[%clk
00:22:52]} {[%emt 00:01:42]} 23. Qb4 {[%clk 00:13:32]} {[%emt 00:01:59]} Raa8
{[%clk 00:18:24]} {[%emt 00:04:59]} 24. Nf5 {[%clk 00:12:26]} {[%emt 00:01:35]}
Qf6 {[%clk 00:17:48]} {[%emt 00:01:06]} 25. Qxd6 {[%clk 00:10:55]} {[%emt
00:02:02]} Bxf5 {[%clk 00:15:42]} {[%emt 00:02:35]} 26. Qxf6 {[%clk 00:11:11]}
{[%emt 00:00:14]} Nxf6 {[%clk 00:15:45]} {[%emt 00:00:27]} 27. d6 {[%clk
00:09:50]} {[%emt 00:01:52]} b4 {[%clk 00:11:48]} {[%emt 00:04:26]} 28. dxc7
{[%clk 00:09:32]} {[%emt 00:00:48]} bxc3 {[%clk 00:11:50]} {[%emt 00:00:28]} 29.
exf5 {[%clk 00:09:55]} {[%emt 00:00:07]} Rac8 {[%clk 00:11:36]} {[%emt
00:00:45]} 30. Rd3 {[%clk 00:02:59]} {[%emt 00:07:26]} Rxc7 {[%clk 00:11:46]}
{[%emt 00:00:20]} 31. Rc1 {[%clk 00:03:26]} {[%emt 00:00:03]} Rfc8 {[%clk
00:11:41]} {[%emt 00:00:34]} 32. Rc2 {[%clk 00:02:44]} {[%emt 00:01:13]} h6
{[%clk 00:09:11]} {[%emt 00:03:00]} 33. Kf1 {[%clk 00:03:08]} {[%emt 00:00:06]}
Ng4 {[%clk 00:08:55]} {[%emt 00:00:45]} 0-1